bitfinex-derivatives/quotes_SOLF0:USTF0_20241008
["timestamp","ask_amount","ask_price","bid_price","bid_amount"]
[1728381308852,10.69,143.79,143.76,3.4783]
[1728381309061,10.69,143.79,143.77,5.32543054]
[1728381309356,10.69,143.79,143.76,3.4783]
[1728381309860,10.69,143.79,143.77,5.32447403]
[1728381310061,10.69,143.79,143.76,3.4783]
[1728381310261,10.69,143.79,143.77,5.32419432]
[1728381310558,10.69,143.79,143.76,3.4783]
[1728381310752,3.60242,143.81,143.77,8.80157583]
[1728381311063,10.69,143.8,143.77,3.4782]
[1728381311655,10.69,143.8,143.78,3.478]
[1728381311857,10.69,143.8,143.76,10.69]
[1728381312156,10.69,143.8,143.77,16.01316865]
[1728381312462,10.69,143.8,143.77,10.69]
[1728381312880,10.69,143.8,143.77,14.1682]
[1728381313762,10.69,143.8,143.75,12.1048]
[1728381314059,10.69,143.8,143.76,5.32148475]
[1728381314260,3.4778,143.79,143.75,15.5833]
[1728381314461,3.4778,143.79,143.76,5.32059029]
[1728381314662,3.4778,143.79,143.75,15.5833]
[1728381314859,3.4778,143.79,143.76,5.32059029]
[1728381315060,14.1676,143.8,143.76,3.4785]
[1728381315558,3.4776,143.8,143.76,3.4785]
[1728381315757,14.1676,143.8,143.76,3.4785]
[1728381316167,3.4776,143.8,143.75,12.1048]
[1728381316366,3.4776,143.8,143.76,8.79803712]
[1728381316557,14.1676,143.8,143.76,3.4783]
[1728381320971,10.69,143.79,143.76,3.4783]
[1728381321269,10.69,143.78,143.74,3.4788]
[1728381321470,10.69,143.78,143.75,5.31880726]
[1728381321770,14.1682,143.78,143.74,15.79]
[1728381321971,14.1682,143.78,143.75,5.31892466]
[1728381322170,14.1682,143.78,143.74,15.79]
[1728381322366,14.1682,143.78,143.75,8.79784196]
[1728381322603,3.4782,143.78,143.75,3.4786]
[1728381322780,10.69,143.79,143.75,14.1686]
[1728381323071,14.168,143.79,143.75,14.1686]
[1728381324577,3.478,143.79,143.75,14.1686]
[1728381324773,14.168,143.79,143.75,14.1686]
[1728381326270,14.168,143.79,143.76,5.32190905]
[1728381326480,3.478,143.79,143.75,10.69]
[1728381326775,14.168,143.79,143.76,8.80016025]
[1728381326975,10.69,143.78,143.76,3.4784]
[1728381327172,10.69,143.78,143.75,10.69]
[1728381327374,10.69,143.78,143.76,5.32278933]
[1728381327676,10.69,143.78,143.75,14.1686]
[1728381327868,10.69,143.78,143.76,5.32264076]
[1728381328065,10.69,143.78,143.75,14.1686]
[1728381328269,10.69,143.78,143.76,5.32298922]
[1728381328472,10.69,143.78,143.75,14.1686]
[1728381328677,10.69,143.78,143.76,5.32287023]
[1728381328880,10.69,143.78,143.75,14.1686]
[1728381329078,10.69,143.78,143.76,11.38598473]
[1728381329376,10.69,143.78,143.77,5.32287097]
[1728381329573,3.478,143.79,143.77,5.32287097]
[1728381329776,14.1676,143.8,143.76,14.1683]
[1728381329999,14.1676,143.8,143.77,5.32305319]
[1728381330279,3.4776,143.8,143.76,14.1683]
[1728381330480,3.4776,143.8,143.77,5.32330437]
[1728381330671,14.1676,143.8,143.76,14.1683]
[1728381330971,14.1676,143.8,143.77,5.32330192]
[1728381331171,14.1676,143.8,143.76,14.1683]
[1728381331371,14.1676,143.8,143.77,5.32378839]
[1728381331674,14.1676,143.8,143.76,14.1683]
[1728381331970,14.1676,143.8,143.77,5.32367231]
[1728381332176,14.1676,143.8,143.76,14.1683]
[1728381332380,14.1676,143.8,143.77,5.32413574]
[1728381332577,14.1676,143.8,143.76,14.1683]
[1728381332773,14.1676,143.8,143.77,5.32403829]
[1728381332979,14.1676,143.8,143.76,14.1683]
[1728381333313,8.39218777,143.81,143.77,8.80213811]
[1728381333481,10.69,143.8,143.77,3.4781]
[1728381337780,10.69,143.8,143.77,3.4782]
[1728381338284,10.69,143.79,143.78,5.46936495]
[1728381338474,10.69,143.79,143.74,10.69]
[1728381338676,10.69,143.78,143.75,15.01652883]
[1728381338876,10.69,143.78,143.76,5.4694407]
[1728381339081,10.69,143.78,143.77,5.4694407]
[1728381343718,10.69,143.78,143.76,3.4785]
[1728381343885,10.69,143.78,143.77,5.4711193]
[1728381344380,10.69,143.78,143.72,10.69]
[1728381344589,5.08,143.79,143.72,10.69]
[1728381344590,10.69,143.76,143.73,15.02209119]
[1728381344891,10.69,143.76,143.74,11.54299119]
[1728381345187,10.69,143.76,143.75,5.47189345]
[1728381346192,14.1685,143.77,143.75,5.47189345]
[1728381346489,14.1685,143.77,143.76,5.47189345]
[1728381349189,10.69,143.77,143.76,5.47189345]
[1728381350417,10.69,143.77,143.74,3.4788]
[1728381350589,10.69,143.77,143.75,5.47455972]
[1728381350784,10.69,143.77,143.75,6.07405285]
[1728381351092,10.69,143.77,143.76,5.47461395]
[1728381353393,3.4781,143.78,143.76,5.47461395]
[1728381353584,3.4781,143.78,143.77,5.47461395]
[1728381353918,14.1681,143.78,143.74,3.4788]
[1728381354093,10.69,143.78,143.75,5.47595484]
[1728381354293,3.4783,143.77,143.75,11.55153043]
[1728381354485,3.4783,143.77,143.76,5.47595484]
[1728381354988,14.1681,143.78,143.76,5.47595484]
[1728381355183,14.1681,143.78,143.77,5.47595484]
[1728381356189,14.1681,143.78,143.77,5.47727561]
[1728381356492,3.4781,143.78,143.77,5.47727561]
[1728381356681,14.1681,143.78,143.77,5.47727561]
[1728381357093,3.4781,143.78,143.77,5.47727561]
[1728381357601,14.1681,143.78,143.74,3.4788]
[1728381357797,14.1681,143.78,143.75,11.55568813]
[1728381358095,14.1681,143.78,143.76,5.47792578]
[1728381358392,14.1681,143.78,143.77,5.47792578]
[1728381361790,3.4781,143.78,143.77,5.47792578]
[1728381361992,14.1681,143.78,143.77,5.47792578]
[1728381362197,5.08,143.79,143.77,5.47792578]
[1728381362492,15.60468777,143.81,143.78,5.48061207]
[1728381362685,14.26868777,143.81,143.79,5.48061207]
[1728381362885,3.57868777,143.81,143.78,3.4779]
[1728381363086,3.57868777,143.81,143.79,5.47986759]
[1728381363393,3.57868777,143.81,143.8,5.47986759]
[1728381364285,3.57868777,143.81,143.8,5.48091057]
[1728381366601,17.74598777,143.81,143.8,5.48091057]
[1728381367892,14.26868777,143.81,143.8,5.48091057]
[1728381368095,3.57868777,143.81,143.8,5.48091057]
[1728381368400,10.81502,143.87,143.86,3.4761]
[1728381368584,10.81502,143.87,143.86,11.68673287]
[1728381368585,0.12502,143.87,143.86,11.68673287]
[1728381368785,0.12502,143.87,143.86,22.37673287]
[1728381368990,0.12502,143.87,143.86,31.59011143]
[1728381369187,0.12502,143.87,143.86,20.90011143]
[1728381369403,0.12502,143.87,143.86,16.89554351]
[1728381369600,0.12502,143.87,143.86,31.85129261]
[1728381370290,0.12502,143.93,143.86,31.85129261]
[1728381370495,0.12502,143.93,143.9,10.69]
[1728381370695,3.48081558,143.92,143.91,5.75221119]
[1728381372401,10.69,143.92,143.91,5.75221119]
[1728381372603,14.16003906,143.92,143.91,5.75221119]
[1728381373100,17.63463906,143.92,143.91,5.75221119]
[1728381373396,17.63463906,143.92,143.85,3.4763]
[1728381373397,14.16003906,143.92,143.85,10.69]
[1728381373604,10.69,143.9,143.86,21.06572209]
[1728381373799,10.69,143.89,143.87,5.72789502]
[1728381374003,10.69,143.89,143.88,5.72789502]
[1728381374501,17.62139365,143.89,143.85,9.16509953]
[1728381374704,8.17832,143.93,143.88,10.69]
[1728381374905,18.86832,143.93,143.89,16.41608761]
[1728381375101,17.46682,143.93,143.89,10.69]
[1728381375505,20.94391758,143.93,143.89,10.69]
[1728381376399,8.90211758,143.93,143.92,10.69]
[1728381376604,3.60211758,143.93,143.91,10.69]
[1728381377506,0.12502,143.93,143.92,10.69]
[1728381378008,0.12502,143.93,143.88,2.6924]
[1728381378200,0.12502,143.93,143.91,10.69]
[1728381379206,0.12502,143.93,143.92,14.1646]
[1728381379812,5.3,144.01,143.95,3.4737]
[1728381380007,10.69,144.0,143.96,10.69]
[1728381380204,1.3412,144.02,143.96,10.69]
[1728381380509,10.69,144.0,143.96,10.69]
[1728381380708,10.69,144.0,143.95,10.69]
[1728381380906,14.1629,144.0,143.95,14.1639]
[1728381381913,3.59792,143.99,143.95,10.69]
[1728381382209,7.14017917,143.99,143.95,10.69]
[1728381382911,7.14017917,143.99,143.94,14.164]
[1728381383406,10.69,143.98,143.94,14.164]
[1728381385213,3.4736,143.97,143.92,12.0165]
[1728381385420,14.1636,143.97,143.92,17.3165]
[1728381385612,14.1636,143.97,143.93,10.69]
[1728381386319,10.69,143.97,143.93,10.69]
[1728381386512,10.69,143.97,143.93,14.1642]
[1728381387118,3.4732,143.98,143.93,14.1642]
[1728381387414,10.69,143.97,143.93,14.1642]
[1728381387945,10.69,143.97,143.92,6.6265]
[1728381387946,10.69,143.97,143.94,14.1641]
[1728381388511,7.14037917,143.99,143.94,14.1641]
[1728381388709,10.69,143.98,143.94,14.1641]
[1728381389016,10.69,143.98,143.94,3.4741]
[1728381390018,10.69,143.98,143.94,14.1641]
[1728381390218,10.69,143.98,143.95,14.1639]
[1728381390615,10.69,143.98,143.95,3.4739]
[1728381390808,10.69,143.98,143.94,15.99]
[1728381391020,10.69,143.95,143.92,6.6265]
[1728381391621,10.69,143.96,143.92,17.3165]
[1728381391822,10.69,143.98,143.94,3.474]
[1728381393424,14.1632,143.98,143.94,3.474]
[1728381394728,10.69,143.97,143.94,3.474]
[1728381397334,10.69,143.98,143.93,15.99]
[1728381397520,10.69,143.98,143.95,3.4738]
[1728381398434,7.14037917,143.99,143.95,3.4738]
[1728381398620,10.69,143.97,143.95,3.4738]
[1728381398820,10.69,143.97,143.94,3.474]
[1728381400532,10.69,143.97,143.94,8.774]
[1728381400929,10.69,143.97,143.94,5.3]
[1728381401234,10.69,143.97,143.95,3.4739]
[1728381401935,10.69,143.97,143.94,8.774]
[1728381406629,3.59802,143.99,143.96,3.4735]
[1728381406831,3.59802,143.99,143.95,10.69]
[1728381407036,3.58260188,143.99,143.94,15.99]
[1728381407352,0.12502,143.99,143.97,10.69]
[1728381407836,0.12502,143.99,143.96,10.69]
[1728381408637,0.12502,143.99,143.96,15.95]
[1728381409140,10.81502,143.99,143.95,10.69]
[1728381409341,10.81502,143.99,143.96,3.4735]
[1728381410136,0.12502,143.99,143.96,3.4735]
[1728381410438,0.12502,143.99,143.97,3.4734]
[1728381410629,10.69,143.98,143.93,1.4053]
[1728381410831,3.4733,143.98,143.93,4.8795]
[1728381411030,10.69,143.96,143.93,10.1395]
[1728381412243,10.69,143.96,143.94,3.4741]
[1728381412441,14.1634,143.97,143.94,3.4741]
[1728381413650,0.12502,143.99,143.92,10.69]
[1728381413940,10.69,143.94,143.88,2.7906]
[1728381414156,10.69,143.94,143.89,15.95]
[1728381414535,14.1642,143.94,143.89,15.95]
[1728381414943,10.69,143.94,143.9,10.69]
[1728381415139,10.69,143.94,143.91,3.4748]
[1728381415334,10.69,143.94,143.87,75.16502]
[1728381415537,14.17297581,143.93,143.9,3.475]
[1728381416939,17.64737581,143.93,143.9,3.475]
[1728381417247,14.17297581,143.93,143.9,3.475]
[1728381417442,14.17297581,143.93,143.88,10.69]
[1728381417662,10.69,143.92,143.89,3.4752]
[1728381418244,3.55178735,143.93,143.88,15.95]
[1728381418245,3.55178735,143.93,143.9,10.69]
[1728381418446,12.1143,143.95,143.9,10.69]
[1728381418646,10.69,143.93,143.89,10.69]
[1728381418950,14.13950483,143.93,143.9,3.4749]
[1728381419343,17.61390483,143.93,143.89,14.1653]
[1728381420351,14.13950483,143.93,143.9,3.4751]
[1728381421054,10.69,143.92,143.88,10.69]
[1728381421655,14.1647,143.92,143.88,14.1654]
[1728381423152,3.4749,143.91,143.88,14.1654]
[1728381423449,3.4749,143.91,143.88,10.69]
[1728381423857,14.1647,143.92,143.88,10.69]
[1728381424154,14.1647,143.92,143.88,14.1654]
[1728381424354,10.69,143.92,143.88,14.1654]
[1728381424555,10.69,143.91,143.87,10.81502]
[1728381424750,14.165,143.91,143.87,14.29072]
[1728381425457,3.43549781,143.9,143.87,14.29072]
[1728381426959,6.91069781,143.9,143.87,14.29072]
[1728381427758,3.4754,143.89,143.87,10.81502]
[1728381428257,3.4754,143.89,143.87,0.12502]
[1728381430476,17.60069781,143.9,143.87,3.60082]
[1728381431265,14.12549781,143.9,143.87,0.12502]
[1728381431467,14.1656,143.88,143.87,0.12502]
[1728381431777,10.69,143.89,143.87,0.12502]
[1728381432364,8.75357309,143.92,143.87,10.81502]
[1728381432566,19.44357309,143.92,143.87,10.81502]
[1728381432864,14.18357309,143.92,143.88,10.69]
[1728381433064,8.75357309,143.92,143.88,10.69]
[1728381433762,8.75357309,143.92,143.89,3.4753]
[1728381433961,19.44357309,143.92,143.89,3.4753]
[1728381434557,10.69,143.91,143.87,0.12502]
[1728381434763,10.69,143.91,143.88,5.70672397]
[1728381435063,10.69,143.91,143.87,0.12502]
[1728381435264,10.69,143.91,143.88,5.71135327]
[1728381435473,10.69,143.91,143.87,0.12502]
[1728381435663,10.69,143.91,143.89,5.71145677]
[1728381435863,10.69,143.91,143.87,0.12502]
[1728381436063,14.165,143.91,143.88,5.71146445]
[1728381436256,14.165,143.91,143.89,5.71146445]
[1728381436457,14.165,143.91,143.9,5.71146445]
[1728381438821,14.165,143.91,143.87,0.12502]
[1728381438963,10.69,143.89,143.87,0.12502]
[1728381439270,10.69,143.89,143.88,14.88499326]
[1728381439567,10.69,143.89,143.88,21.06850676]
[1728381440359,10.69,143.89,143.88,11.90856078]
[1728381440560,14.1653,143.89,143.88,21.06949015]
[1728381440762,19.3853,143.89,143.88,21.06949015]
[1728381440961,19.3853,143.89,143.88,5.72504728]
[1728381445370,19.3853,143.89,143.88,1.37684728]
[1728381445668,15.91,143.89,143.81,0.12502]
[1728381445875,10.69,143.85,143.82,15.34229209]
[1728381446172,10.69,143.85,143.83,18.81909209]
[1728381446372,15.91,143.86,143.84,15.34229209]
[1728381446563,5.22,143.86,143.85,6.18290808]
[1728381446761,5.22,143.86,143.85,15.18266583]
[1728381446972,15.5634,143.88,143.85,15.18266583]
[1728381447177,5.22,143.87,143.84,3.4764]
[1728381447474,5.22,143.87,143.85,6.18121598]
[1728381447670,5.22,143.87,143.84,3.4764]
[1728381447976,5.22,143.87,143.85,6.18030316]
[1728381448170,5.22,143.87,143.83,10.69]
[1728381448362,19.3859,143.87,143.84,18.6546222]
[1728381448674,19.3859,143.87,143.85,6.18015619]
[1728381448872,19.3859,143.87,143.84,3.4766]
[1728381449186,3.4761,143.86,143.85,6.17913361]
[1728381449378,5.22,143.87,143.81,0.12502]
[1728381449566,10.69,143.86,143.82,15.17405649]
[1728381449771,10.69,143.86,143.83,18.65075649]
[1728381449968,10.69,143.86,143.84,6.17843289]
[1728381450169,10.69,143.86,143.83,3.4767]
[1728381450371,10.69,143.86,143.84,6.1783258]
[1728381450569,10.69,143.86,143.83,3.4767]
[1728381450774,10.69,143.86,143.84,6.17712817]
[1728381450972,10.69,143.86,143.83,3.4767]
[1728381451173,15.91,143.86,143.84,6.17714151]
[1728381451374,15.91,143.86,143.83,3.4767]
[1728381451569,10.69,143.86,143.84,6.17625977]
[1728381451881,10.69,143.86,143.81,10.81502]
[1728381452081,10.69,143.86,143.82,15.16934571]
[1728381452382,14.1662,143.86,143.83,6.17651074]
[1728381452580,14.1662,143.86,143.81,10.81502]
[1728381452771,14.1662,143.86,143.83,3.4768]
[1728381453578,10.69,143.84,143.81,0.12502]
[1728381453882,14.22324162,143.84,143.82,6.17478111]
[1728381454073,14.22324162,143.84,143.81,0.12502]
[1728381454378,14.22324162,143.84,143.82,6.17492848]
[1728381454579,14.22324162,143.84,143.81,3.60212]
[1728381454776,14.22324162,143.84,143.82,9.65088225]
[1728381454978,14.22324162,143.84,143.82,3.477]
[1728381455374,14.22324162,143.84,143.81,0.12502]
[1728381455594,10.69,143.83,143.81,3.60222]
[1728381455773,10.69,143.83,143.82,6.17281738]
[1728381456377,10.69,143.83,143.81,3.60212]
[1728381456579,10.69,143.83,143.82,6.17275278]
[1728381456880,10.69,143.83,143.82,6.17184879]
[1728381457572,10.69,143.83,143.82,11.78740843]
[1728381457769,14.1668,143.83,143.82,11.78740843]
[1728381457970,14.1668,143.83,143.82,5.61555964]
[1728381459674,14.1668,143.83,143.81,0.12502]
[1728381459878,10.69,143.82,143.81,0.12502]
[1728381460381,10.69,143.82,143.81,5.73888632]
[1728381460783,14.167,143.82,143.81,5.73888632]
[1728381460981,14.167,143.82,143.81,0.12502]
[1728381463972,3.4769,143.83,143.81,0.12502]
[1728381464177,10.69,143.82,143.81,0.12502]
[1728381464977,3.53324162,143.84,143.81,0.12502]
[1728381465187,10.69,143.82,143.81,0.12502]
[1728381465383,14.11838759,143.82,143.81,0.12502]
[1728381466185,3.42838759,143.82,143.81,3.60232]
[1728381466379,5.14,143.84,143.81,5.73124183]
[1728381466684,5.14,143.84,143.81,0.12502]
[1728381466897,8.54577978,143.84,143.81,0.12502]
[1728381467086,8.54577978,143.84,143.82,3.4769]
[1728381467284,5.14,143.84,143.82,3.4769]
[1728381467886,3.43079728,143.83,143.82,3.4769]
[1728381468287,3.43079728,143.83,143.82,9.08188975]
[1728381468587,5.14,143.84,143.82,9.08188975]
[1728381468882,5.14,143.84,143.83,3.4768]
[1728381469087,3.53512969,143.84,143.83,9.08145496]
[1728381469390,3.53512969,143.84,143.83,3.4768]
[1728381469591,3.53512969,143.84,143.83,9.08172256]
[1728381469984,3.53512969,143.84,143.83,3.4768]
[1728381472293,3.53512969,143.84,143.83,9.08288676]
[1728381473194,10.69,143.85,143.83,9.08288676]
[1728381473394,10.69,143.85,143.83,3.4768]
[1728381474188,8.6161,143.86,143.83,3.4768]
[1728381474389,10.69,143.84,143.83,3.4768]
[1728381474589,14.10073694,143.84,143.83,9.08422977]
[1728381474790,3.41073694,143.84,143.83,9.08422977]
[1728381474991,10.69,143.85,143.83,5.60742977]
[1728381475191,10.69,143.85,143.84,9.08445036]
[1728381475690,10.69,143.85,143.84,5.60785036]
[1728381482889,14.1663,143.85,143.84,5.60785036]
[1728381483909,14.1663,143.85,143.81,3.60222]
[1728381484087,10.69,143.82,143.81,3.60222]
[1728381484285,10.69,143.82,143.81,20.91134263]
[1728381484602,10.69,143.82,143.81,5.74460507]
[1728381484997,14.167,143.82,143.81,5.74460507]
[1728381485400,10.69,143.82,143.81,5.74460507]
[1728381486294,14.167,143.82,143.81,5.74460507]
[1728381487138,14.167,143.82,143.81,0.12502]
[1728381487393,14.167,143.82,143.81,5.74634484]
[1728381490698,14.167,143.82,143.81,0.12502]
[1728381490998,14.167,143.82,143.81,5.74738832]
[1728381491895,12.12350931,143.83,143.81,5.74738832]
[1728381492095,10.69,143.82,143.81,0.12502]
[1728381492301,10.69,143.82,143.81,11.92654622]
[1728381493296,10.69,143.82,143.81,5.74781694]
[1728381493500,10.69,143.82,143.81,11.92827673]
[1728381497107,10.69,143.82,143.81,5.74781694]
[1728381497331,14.167,143.82,143.81,0.12502]
[1728381497698,14.167,143.82,143.81,5.75293485]
[1728381498400,3.4777,143.8,143.76,3.4784]
[1728381498602,5.06,143.79,143.77,6.18560769]
[1728381498803,5.06,143.79,143.75,0.12502]
[1728381499000,10.69,143.76,143.75,0.12502]
[1728381499295,10.69,143.76,143.75,15.20245607]
[1728381500518,10.69,143.76,143.75,3.60372]
[1728381500709,10.69,143.78,143.75,15.19987571]
[1728381500898,10.69,143.78,143.76,15.07485571]
[1728381501103,10.69,143.78,143.77,6.18456065]
[1728381501800,15.75,143.8,143.77,15.07243172]
[1728381502006,3.39233919,143.79,143.78,6.18456065]
[1728381502908,3.39233919,143.79,143.78,9.66246065]
[1728381503109,3.39233919,143.79,143.78,18.55010094]
[1728381503410,14.08233919,143.79,143.78,18.55010094]
[1728381503904,14.08233919,143.79,143.78,9.66246065]
[1728381504113,14.08233919,143.79,143.78,6.18456065]
[1728381504903,14.08233919,143.79,143.75,0.12502]
[1728381505206,14.08233919,143.79,143.76,15.07274543]
[1728381505409,14.08233919,143.79,143.77,6.18376231]
[1728381505608,14.08233919,143.79,143.77,3.4781]
[1728381505809,14.08233919,143.79,143.75,0.12502]
[1728381506009,14.08233919,143.79,143.76,15.07358089]
[1728381506210,14.08233919,143.79,143.77,18.55168089]
[1728381506411,14.08233919,143.79,143.77,3.4781]
[1728381506909,14.08233919,143.79,143.76,3.4783]
[1728381506910,10.69,143.78,143.76,3.4783]
[1728381507510,14.1681,143.78,143.76,3.4783]
[1728381508011,10.69,143.77,143.75,0.12502]
[1728381508414,3.42525728,143.76,143.75,3.60362]
[1728381508603,3.42525728,143.76,143.75,18.68154665]
[1728381508809,3.42525728,143.76,143.75,3.60362]
[1728381509112,3.42525728,143.76,143.75,9.7895158]
[1728381509821,3.42525728,143.76,143.75,3.60362]
[1728381513415,14.11525728,143.76,143.75,3.60362]
[1728381516114,3.42525728,143.76,143.75,3.60362]
[1728381516308,5.06,143.79,143.78,3.4778]
[1728381516505,8.47472952,143.79,143.76,10.69]
[1728381517007,3.41472952,143.79,143.78,3.478]
[1728381518604,14.10472952,143.79,143.78,3.478]
[1728381519915,14.10472952,143.79,143.77,3.4781]
[1728381520117,10.69,143.78,143.77,3.4781]
[1728381520718,5.06,143.8,143.75,0.12502]
[1728381521016,8.61096375,143.8,143.78,3.478]
[1728381521314,10.69,143.79,143.78,3.478]
[1728381521514,8.61096375,143.8,143.75,0.12502]
[1728381521721,3.4787,143.76,143.71,3.4796]
[1728381521911,10.69,143.72,143.71,3.4796]
[1728381525914,10.69,143.72,143.69,0.12502]
[1728381526115,3.4791,143.74,143.7,3.4798]
[1728381526314,10.69,143.71,143.7,3.4798]
[1728381528923,10.69,143.71,143.69,3.60502]
[1728381529223,10.69,143.7,143.69,3.60502]
[1728381529924,6.96383766,143.72,143.7,3.4799]
[1728381530123,10.69,143.71,143.7,3.4799]
[1728381532122,10.69,143.71,143.69,3.60512]
[1728381532425,10.69,143.7,143.69,3.60512]
[1728381533724,6.96383766,143.72,143.69,0.12502]
[1728381533930,3.479,143.74,143.69,0.12502]
[1728381534221,10.69,143.72,143.69,0.12502]
[1728381534422,10.69,143.72,143.71,3.4797]
[1728381536024,2.7796,143.79,143.69,0.12502]
[1728381536226,10.69,143.72,143.69,0.12502]
[1728381536819,10.69,143.72,143.71,3.4797]
[1728381537323,2.7796,143.79,143.71,10.69]
[1728381537527,10.69,143.75,143.74,3.4787]
[1728381537827,10.69,143.75,143.7,10.69]
[1728381538225,10.69,143.75,143.73,3.4791]
[1728381538627,5.08,143.78,143.73,3.4791]
[1728381538628,10.69,143.74,143.73,3.4791]
[1728381538828,14.169,143.74,143.7,10.69]
[1728381539127,10.69,143.74,143.7,10.69]
[1728381539327,10.69,143.74,143.71,3.4797]
[1728381539517,10.69,143.74,143.7,10.69]
[1728381539717,14.1688,143.75,143.7,10.69]
[1728381540427,14.1688,143.75,143.73,3.4792]
[1728381540622,3.55096375,143.8,143.71,10.69]
[1728381540830,14.1685,143.76,143.71,10.69]
[1728381541028,17.60329933,143.76,143.71,10.69]
[1728381541222,17.60329933,143.76,143.74,3.4789]
[1728381542625,10.69,143.75,143.69,0.12502]
[1728381542825,3.479,143.74,143.72,3.4793]
[1728381543025,10.69,143.73,143.69,0.12502]
[1728381543220,10.69,143.72,143.69,0.12502]
[1728381543733,10.69,143.72,143.71,3.4797]
[1728381544134,10.69,143.72,143.69,0.12502]
[1728381544326,10.69,143.7,143.69,3.60512]
[1728381544732,10.69,143.71,143.69,0.12502]
[1728381544931,10.69,143.71,143.7,3.4799]
[1728381545735,3.4796,143.72,143.7,3.4799]
[1728381545936,14.1696,143.72,143.7,3.4799]
[1728381547332,10.69,143.72,143.69,0.12502]
[1728381547533,14.1699,143.7,143.69,0.12502]
[1728381548237,19.2499,143.7,143.69,0.12502]
[1728381550038,8.5599,143.7,143.69,0.12502]
[1728381550336,19.2499,143.7,143.69,0.12502]
[1728381554338,8.5599,143.7,143.69,0.12502]
[1728381554542,19.2499,143.7,143.69,0.12502]
[1728381555531,8.5599,143.7,143.69,0.12502]
[1728381555737,19.2499,143.7,143.69,0.12502]
[1728381558949,15.77,143.7,143.69,0.12502]
[1728381559445,19.2499,143.7,143.69,0.12502]
[1728381560544,15.77,143.7,143.69,0.12502]
[1728381560741,5.08,143.7,143.69,0.12502]
[1728381560944,15.77,143.7,143.69,0.12502]
[1728381562351,5.08,143.7,143.69,0.12502]
[1728381562552,5.04,143.7,143.69,3.60502]
[1728381565352,15.73,143.7,143.69,3.60502]
[1728381565650,5.04,143.7,143.69,0.12502]
[1728381566054,15.73,143.7,143.69,0.12502]
[1728381566554,15.73,143.7,143.69,3.60522]
[1728381566755,15.73,143.7,143.69,0.12502]
[1728381567554,19.2099,143.7,143.69,0.12502]
[1728381572358,4.0615,143.75,143.69,0.12502]
[1728381572560,10.69,143.71,143.69,0.12502]
[1728381573254,5.04,143.71,143.69,3.60512]
[1728381573459,10.69,143.7,143.69,3.60512]
[1728381574966,10.69,143.7,143.69,0.12502]
[1728381576368,8.5197,143.71,143.69,3.60502]
[1728381576565,19.2097,143.71,143.69,3.60502]
[1728381579069,15.73,143.71,143.69,3.60502]
[1728381580372,15.73,143.71,143.69,0.12502]
[1728381580670,10.69,143.7,143.69,0.12502]
[1728381581475,14.1699,143.7,143.69,0.12502]
[1728381581774,10.69,143.7,143.69,0.12502]
[1728381582073,14.1699,143.7,143.69,0.12502]
[1728381582574,3.4799,143.7,143.69,0.12502]
[1728381582874,10.69,143.7,143.69,0.12502]
[1728381583269,14.1699,143.7,143.69,0.12502]
[1728381584576,10.69,143.7,143.69,0.12502]
[1728381585076,8.5198,143.71,143.69,0.12502]
[1728381585276,10.69,143.7,143.69,0.12502]
[1728381587180,14.1699,143.7,143.69,0.12502]